bitfinex-derivatives/quotes_ETHF0:USTF0_20250224
["timestamp","ask_amount","ask_price","bid_price","bid_amount"]
[1740374726147,0.541,2710.5,2710.2,3.2078]
[1740374727645,0.541,2710.5,2709.8,3.2078]
[1740374727847,0.541,2710.5,2709.8,3.7709]
[1740374728148,3.2078,2710.4,2709.8,3.7709]
[1740374728343,3.2163,2710.3,2709.8,3.7709]
[1740374728539,3.7535,2710.3,2709.8,3.2078]
[1740374728743,3.2078,2709.9,2709.3,3.2078]
[1740374728942,3.7675,2709.8,2708.9,3.2078]
[1740374729149,3.2078,2709.6,2708.9,3.2078]
[1740374729537,0.06151151,2709.5,2708.9,3.2078]
[1740374729741,2.647,2709.4,2708.9,3.2078]
[1740374730155,0.5372,2709.3,2708.9,3.2078]
[1740374730342,0.5833,2709.2,2708.9,3.2078]
[1740374730546,0.5833,2709.2,2708.9,3.94606]
[1740374730745,0.5833,2709.2,2709.0,0.73826]
[1740374731150,0.5833,2709.2,2708.9,3.2078]
[1740374731452,0.5833,2709.2,2708.9,3.94608]
[1740374731654,0.5833,2709.2,2708.9,3.2078]
[1740374731950,5.634,2709.5,2708.9,3.2078]
[1740374732150,5.634,2709.5,2709.3,0.73817]
[1740374732151,2.987,2709.5,2709.3,0.73817]
[1740374732349,2.987,2709.5,2709.4,1.1191]
[1740374732551,2.987,2709.5,2709.4,0.5838]
[1740374733445,2.987,2709.5,2709.2,3.2078]
[1740374733851,2.987,2709.5,2709.2,3.94599]
[1740374734151,2.987,2709.5,2709.3,0.73818]
[1740374734351,2.987,2709.5,2709.2,3.2078]
[1740374734551,2.987,2709.5,2709.2,3.94599]
[1740374735150,3.7771,2709.7,2709.2,3.2078]
[1740374736345,3.2078,2709.4,2708.4,3.2078]
[1740374736554,0.5693,2709.7,2708.4,3.2078]
[1740374736555,3.2078,2708.8,2708.4,3.2078]
[1740374736749,0.5765,2708.7,2708.0,0.73852]
[1740374736950,3.2078,2708.5,2707.9,2.08192075]
[1740374737149,1.6502,2708.7,2708.2,0.73846]
[1740374737352,0.00553608,2708.5,2708.2,0.73846]
[1740374737547,0.00553608,2708.5,2707.9,2.08192075]
[1740374737747,0.00553608,2708.5,2708.1,0.73849]
[1740374737956,0.00553608,2708.5,2707.9,2.08192075]
[1740374738351,0.00553608,2708.5,2708.2,0.73848]
[1740374738856,0.00553608,2708.5,2708.1,0.73849]
[1740374739058,3.21333608,2708.5,2707.9,2.08192075]
[1740374739657,3.21333608,2708.5,2708.1,0.7385]
[1740374740156,3.21333608,2708.5,2707.9,2.08192075]
[1740374740359,3.21333608,2708.5,2708.1,0.73849]
[1740374741258,3.21333608,2708.5,2708.2,0.73846]
[1740374741763,3.21333608,2708.5,2708.2,0.73847]
[1740374742058,3.21333608,2708.5,2708.2,0.73846]
[1740374743154,2.647,2708.4,2707.4,3.2078]
[1740374743353,3.2078,2708.0,2707.4,3.2078]
[1740374743552,1.1354,2707.9,2707.4,3.2078]
[1740374743761,1.1354,2707.9,2707.5,0.73865]
[1740374743957,1.7166,2707.9,2707.5,0.73865]
[1740374744153,1.7166,2707.9,2707.2,1.1134]
[1740374744361,3.2078,2707.7,2707.2,1.1134]
[1740374744654,3.2078,2707.7,2707.1,3.2078]
[1740374744859,5.8548,2707.7,2707.1,3.2078]
[1740374745351,5.8548,2707.7,2706.8,4.3448]
[1740374745763,3.2078,2707.4,2706.8,5.08366]
[1740374746062,3.2078,2707.4,2706.8,5.08363]
[1740374746260,0.5752,2707.3,2706.8,5.08363]
[1740374746467,0.5752,2707.3,2706.9,0.73883]
[1740374746763,0.5752,2707.3,2706.8,4.3448]
[1740374746956,3.2222,2707.3,2706.8,3.2078]
[1740374747159,3.2222,2707.3,2706.9,0.73883]
[1740374747160,3.8083,2707.3,2706.9,0.73883]
[1740374747554,3.8083,2707.3,2706.8,3.2078]
[1740374747756,3.8083,2707.3,2706.9,0.73882]
[1740374747963,3.8083,2707.3,2706.9,0.73881]
[1740374748261,3.8083,2707.3,2707.0,0.7388]
[1740374748658,3.8083,2707.3,2706.8,3.2078]
[1740374748659,3.8083,2707.3,2706.9,0.73882]
[1740374748867,3.8083,2707.3,2706.9,0.73883]
[1740374749161,3.8083,2707.3,2706.8,3.94664]
[1740374749357,3.8083,2707.3,2706.9,0.73881]
[1740374749765,3.8083,2707.3,2706.8,3.2078]
[1740374749962,3.8083,2707.3,2706.5,1.1119]
[1740374749963,3.2078,2707.1,2706.5,3.2078]
[1740374750259,3.2078,2707.1,2706.2,0.5373]
[1740374750560,3.2078,2707.1,2706.9,0.73881]
[1740374750561,5.86033608,2707.1,2706.9,0.73881]
[1740374750757,3.21333608,2707.1,2707.0,0.73881]
[1740374750963,0.00553608,2707.1,2707.0,0.73881]
[1740374751266,0.00553608,2707.1,2706.7,3.2078]
[1740374751562,0.00553608,2707.1,2706.9,0.73883]
[1740374752062,0.00553608,2707.1,2706.8,0.5529]
[1740374752262,0.00553608,2707.1,2707.0,0.73881]
[1740374752462,0.00553608,2707.1,2706.9,0.73882]
[1740374752865,0.00553608,2707.1,2706.8,1.1126]
[1740374753165,0.00553608,2707.1,2707.0,0.73881]
[1740374754056,0.00553608,2707.1,2707.0,3.94661]
[1740374754252,0.00553608,2707.1,2707.0,0.73881]
[1740374756263,0.00553608,2707.1,2707.0,3.94661]
[1740374760363,6.08e-06,2707.1,2707.0,3.94661]
[1740374765669,6.08e-06,2707.1,2707.0,9.94661]
[1740374765965,1.1417,2708.3,2707.6,1.84657]
[1740374766166,3.2078,2708.8,2708.7,0.73834]
[1740374766469,3.2078,2708.8,2708.1,3.2078]
[1740374766673,3.2078,2708.8,2708.3,0.73845]
[1740374766862,3.2078,2708.8,2708.1,3.2078]
[1740374766863,0.00553608,2708.7,2708.6,0.73837]
[1740374767159,0.00553608,2708.7,2708.2,0.00553608]
[1740374767362,0.00553608,2708.7,2708.3,0.73843]
[1740374767963,0.00553608,2708.7,2708.2,0.00553608]
[1740374768571,0.00553608,2708.7,2708.6,0.73837]
[1740374770766,0.00553608,2708.7,2708.4,3.94621]
[1740374771774,1.65,2708.3,2708.2,0.00553608]
[1740374774472,0.5358,2708.3,2708.2,0.74401608]
[1740374775176,0.5358,2708.3,2708.2,0.00553608]
[1740374775577,0.5358,2708.3,2707.7,3.94641]
[1740374775777,0.5358,2708.3,2707.8,0.73857]
[1740374776273,0.5358,2708.3,2707.7,3.2078]
[1740374776473,0.5358,2708.3,2707.9,0.73854]
[1740374776780,0.5358,2708.3,2708.0,0.73852]
[1740374777480,0.5358,2708.3,2707.8,0.73857]
[1740374777677,0.5358,2708.3,2707.7,3.2078]
[1740374778583,0.5358,2708.3,2707.7,3.9464]
[1740374778778,0.5641,2708.2,2707.7,3.2078]
[1740374779278,0.5641,2708.2,2708.0,0.73853]
[1740374779675,0.5641,2708.2,2708.1,0.73851]
[1740374780084,0.5358,2708.3,2707.7,3.2078]
[1740374780382,0.5358,2708.3,2708.2,0.73848]
[1740374786784,0.5358,2708.3,2707.8,0.42612075]
[1740374788280,3.2078,2708.0,2707.8,0.42612075]
[1740374788481,1.0851,2707.9,2707.7,0.7386]
[1740374789880,1.0851,2707.9,2707.8,0.73859]
[1740374790081,3.2078,2708.0,2707.9,0.73856]
[1740374790481,1.6209,2708.3,2708.1,0.73849]
[1740374790789,1.6209,2708.3,2708.2,0.73848]
[1740374790981,5.8508,2708.8,2708.0,1.84633]
[1740374791286,5.8508,2708.8,2708.5,0.7384]
[1740374791287,1.0969,2708.6,2708.5,0.7384]
[1740374791487,1.28668427,2708.7,2708.6,0.73837]
[1740374791782,0.55703608,2708.7,2708.6,0.73837]
[1740374792582,0.00553608,2708.7,2708.6,0.73837]
[1740374797785,0.00553608,2708.7,2708.4,0.5307]
[1740374797986,0.00553608,2708.7,2708.1,0.5541]
[1740374798295,0.00553608,2708.7,2708.4,0.73842]
[1740374798991,0.00553608,2708.7,2708.5,0.73838]
[1740374799194,0.00553608,2708.7,2708.1,3.1961]
[1740374799392,0.00553608,2708.7,2708.6,0.73837]
[1740374799887,0.00553608,2708.7,2708.1,3.1961]
[1740374800086,0.00553608,2708.7,2708.5,0.73838]
[1740374800281,0.00553608,2708.7,2708.2,0.73848]
[1740374800492,0.00553608,2708.7,2708.1,3.1961]
[1740374800493,0.00553608,2708.7,2708.3,0.73843]
[1740374801085,0.00553608,2708.7,2708.1,3.1961]
[1740374801286,0.00553608,2708.7,2708.5,0.73838]
[1740374804190,0.00553608,2708.7,2708.1,3.1961]
[1740374804392,0.00553608,2708.7,2708.5,0.73839]
[1740374805595,0.00553608,2708.7,2708.4,0.73841]
[1740374806596,0.00553608,2708.7,2708.1,3.1961]
[1740374806896,0.00553608,2708.7,2708.5,0.73839]
[1740374808294,0.00553608,2708.7,2708.5,0.73837]
[1740374808584,0.00553608,2708.7,2708.5,0.73839]
[1740374809496,0.00553608,2708.7,2708.1,3.1961]
[1740374809695,0.00553608,2708.7,2708.4,0.7384]
[1740374810195,0.00553608,2708.7,2708.5,0.73839]
[1740374810891,0.00553608,2708.7,2708.6,0.73837]
[1740374814898,0.00553608,2708.7,2708.6,3.94617]
[1740374815298,0.00553608,2708.7,2708.6,4.48467]
[1740374817489,6.08e-06,2708.7,2708.6,4.48467]
[1740374817687,6.08e-06,2708.7,2708.6,10.48467]
[1740374817887,0.5826,2709.7,2709.2,0.73821]
[1740374818098,0.5826,2709.7,2709.1,3.2078]
[1740374818494,0.5826,2709.7,2709.2,0.5686]
[1740374818695,0.5826,2709.7,2709.4,0.73814]
[1740374819097,0.5826,2709.7,2709.5,0.73812]
[1740374819601,0.5826,2709.7,2709.4,0.73814]
[1740374820801,0.5826,2709.7,2709.4,0.73813]
[1740374821899,1.29910941,2709.8,2709.3,0.55303608]
[1740374822303,0.56923608,2709.8,2709.7,0.73807]
[1740374823200,0.00553608,2709.8,2709.7,0.73807]
[1740374825601,0.00553608,2709.8,2709.4,5.8458]
[1740374826102,0.00553608,2709.8,2709.4,0.73814]
[1740374826306,0.00553608,2709.8,2709.5,0.73811]
[1740374826901,0.00553608,2709.8,2709.3,3.19103608]
[1740374826902,0.00553608,2709.8,2709.4,0.73814]
[1740374827602,0.00553608,2709.8,2709.3,3.19103608]
[1740374828106,0.00553608,2709.8,2709.4,0.73814]
[1740374829005,0.00553608,2709.8,2709.4,0.73815]
[1740374829200,0.00553608,2709.8,2709.3,3.19103608]
[1740374829405,0.00553608,2709.8,2709.4,0.73814]
[1740374829808,0.00553608,2709.8,2709.5,0.73812]
[1740374830006,0.00553608,2709.8,2709.3,3.19103608]
[1740374830509,0.00553608,2709.8,2709.5,0.73812]
[1740374831006,0.00553608,2709.8,2709.4,0.73814]
[1740374832006,0.00553608,2709.8,2709.7,3.94587]
[1740374832208,0.00553608,2709.8,2709.7,6.58287]
[1740374833801,0.2903779,2710.9,2709.7,11.8448]
[1740374833802,3.2078,2710.9,2709.7,11.8448]
[1740374834107,1.6866,2711.2,2710.2,5.05258]
[1740374834305,2.4141399,2711.2,2710.5,3.2078]
[1740374834499,1.8626399,2711.2,2711.1,0.73769]
[1740374834702,0.7275399,2711.2,2711.1,0.73769]
[1740374834903,3.2078,2711.7,2710.9,3.21333608]
[1740374835103,0.00553608,2711.4,2711.3,0.73763]
[1740374835908,0.00553608,2711.4,2711.3,3.94543]
[1740374837204,0.00553608,2711.4,2711.3,3.2078]
[1740374837613,0.00553608,2711.4,2711.3,3.94543]
[1740374838312,0.00553608,2711.4,2711.3,2.636]
[1740374839207,0.00553608,2711.4,2711.2,1.29936]
[1740374839208,3.21333608,2711.4,2711.0,0.42612075]
[1740374839415,3.2078,2711.1,2710.9,0.00553608]
[1740374839714,1.1397,2711.3,2710.9,0.00553608]
[1740374840107,0.00553608,2711.4,2711.3,0.73763]
[1740374840714,0.00553608,2711.4,2711.3,3.94543]
[1740374844716,6.08e-06,2711.4,2711.3,3.94543]
[1740374846912,6.08e-06,2711.4,2711.3,9.94543]
[1740374849315,1.1056,2712.6,2711.3,14.09846858]
[1740374849316,0.5629,2712.6,2711.3,14.09846858]
[1740374849617,0.5629,2712.6,2712.0,3.2078]
[1740374849821,0.5629,2712.6,2712.3,0.73734]
[1740374850009,0.5629,2712.6,2712.1,2.633]
[1740374850215,0.5629,2712.6,2712.1,3.1998]
[1740374850510,0.56843608,2712.6,2712.1,3.1998]
[1740374850712,0.56843608,2712.6,2712.1,3.7328]
[1740374850916,0.56843608,2712.6,2712.5,0.73731]
[1740374851411,0.56843608,2712.6,2712.3,44.01333608]
[1740374851616,0.56843608,2712.6,2712.5,0.73731]
[1740374851814,0.56843608,2712.6,2712.3,44.01333608]
[1740374852012,0.56843608,2712.6,2712.3,3.21333608]
[1740374852813,0.56843608,2712.6,2712.3,2.63853608]
[1740374853413,0.56843608,2712.6,2712.3,0.00553608]
[1740374856418,0.56843608,2712.6,2712.4,0.73731]
[1740374856720,0.56843608,2712.6,2712.3,0.00553608]
[1740374857226,0.00553608,2712.6,2712.5,3.94511]
[1740374857717,0.00553608,2712.6,2712.5,6.57711]
[1740374858218,6.08e-06,2712.6,2712.5,13.00323075]
[1740374858720,6.08e-06,2712.6,2712.5,12.57711]
[1740374859110,6.08e-06,2712.6,2712.5,53.37711]
[1740374863318,6.08e-06,2712.6,2712.5,53.37611]
[1740374865726,6.08e-06,2712.6,2712.5,47.37611]
[1740374866019,6.08e-06,2712.6,2712.5,53.37611]
[1740374867218,6.08e-06,2712.6,2712.5,47.37611]
[1740374868019,6.08e-06,2712.6,2712.5,44.74511]
[1740374868218,6.08e-06,2712.6,2712.5,47.37511]
[1740374868825,0.5395,2713.1,2713.0,0.73717]
[1740374869027,0.5395,2713.1,2713.0,3.36717]
[1740374869225,0.5494,2713.3,2713.2,0.73712]
[1740374870231,0.5494,2713.3,2713.2,3.94492]
[1740374871827,0.5304,2713.4,2713.3,0.73709]
[1740374872325,0.00553608,2713.5,2713.4,0.73706]
[1740374872533,0.00553608,2713.5,2713.4,3.36606]
[1740374873228,0.00553608,2713.5,2713.4,2.629]
[1740374874825,0.00553608,2713.5,2713.4,3.36606]
[1740374881027,0.00553608,2713.5,2713.4,9.36606]
[1740374881231,0.569,2713.9,2713.8,0.73695]
[1740374881425,0.5479,2714.0,2713.9,0.73693]
[1740374881728,3.2078,2714.8,2713.9,40.8]
[1740374881928,1.1558,2714.7,2714.4,0.73678]
[1740374882126,1.1558,2714.7,2714.1,3.2078]
[1740374882127,1.1558,2714.7,2714.2,2.628]
[1740374882332,1.1558,2714.7,2714.3,0.00552568]
[1740374883132,1.1558,2714.7,2714.3,0.74232568]
[1740374883434,1.1558,2714.7,2714.3,0.00552568]
[1740374883632,1.1558,2714.7,2714.6,0.73674]
[1740374884140,1.1558,2714.7,2714.6,3.36374]
[1740374884438,0.00552568,2714.8,2714.7,0.73671]
[1740374884635,0.00552568,2714.8,2714.7,3.94451]
[1740374885237,0.00552568,2714.8,2714.7,4.23670874]
[1740374886031,0.00552568,2714.8,2714.5,0.73674]
[1740374886238,1.12932568,2714.8,2714.6,2.627]
[1740374886432,1.12932568,2714.8,2714.5,2.627]
[1740374886832,1.12932568,2714.8,2714.5,3.36375]
[1740374887136,1.12932568,2714.8,2714.6,0.73673]
[1740374887337,1.12932568,2714.8,2714.7,0.73671]
[1740374888137,1.12932568,2714.8,2714.6,0.73672]
[1740374888339,1.12932568,2714.8,2714.5,2.627]
[1740374888634,1.12932568,2714.8,2714.7,3.94451]
[1740374889234,5.68e-06,2714.8,2714.7,3.94451]
[1740374889435,5.68e-06,2714.8,2714.7,9.94451]
[1740374890133,1.1389,2715.5,2715.4,0.73652]
[1740374890332,1.1389,2715.5,2715.4,2.626]
[1740374890630,1.1389,2715.5,2715.4,3.36252]
[1740374891235,0.5816,2715.5,2715.4,3.36252]
[1740374895444,0.53262939,2715.7,2715.6,0.73647]
[1740374895637,0.00362939,2715.7,2715.6,3.94427]
[1740374897440,1.1254,2716.3,2715.6,3.2078]
[1740374897639,1.1254,2716.3,2716.2,0.7363]
[1740374898134,1.1254,2716.3,2716.1,3.36031]
[1740374898334,0.5726,2716.2,2716.1,2.624]
[1740374898734,0.5726,2716.2,2716.1,3.36033]
[1740374900043,0.5726,2716.2,2716.1,2.624]
[1740374900239,0.5726,2716.2,2716.1,3.36033]
[1740374900438,0.5726,2716.2,2716.1,2.624]
[1740374900736,0.5726,2716.2,2715.9,3.21332568]
[1740374900942,0.5726,2716.2,2715.9,2.62952568]
[1740374901237,0.5726,2716.2,2716.1,0.73633]
[1740374901734,0.5726,2716.2,2715.9,2.62952568]
[1740374902135,0.5726,2716.2,2716.0,0.73634]
[1740374902535,0.5726,2716.2,2715.9,3.36588568]
[1740374902947,0.5726,2716.2,2715.9,2.62952568]
[1740374903135,0.5726,2716.2,2716.0,0.73636]
[1740374904240,0.5726,2716.2,2715.9,2.62952568]
[1740374904430,0.5726,2716.2,2716.1,0.73633]
[1740374905236,0.5726,2716.2,2715.9,2.62952568]
[1740374905436,0.5726,2716.2,2716.0,0.73635]
[1740374905644,0.5726,2716.2,2716.0,41.53635]
[1740374905841,0.5726,2716.2,2716.0,40.8]
[1740374906039,0.5726,2716.2,2715.9,5.83732568]
[1740374906849,0.5726,2716.2,2715.9,6.57368568]
[1740374907234,0.5726,2716.2,2715.9,5.83732568]
[1740374907446,0.5726,2716.2,2716.0,0.73635]
[1740374908148,0.5726,2716.2,2716.0,0.73633]
[1740374908344,0.5726,2716.2,2715.9,5.83732568]
[1740374908645,0.5726,2716.2,2715.9,6.57370568]
[1740374909050,0.5726,2716.2,2715.9,5.83732568]
[1740374909249,0.5726,2716.2,2716.0,0.73634]
[1740374909449,0.5726,2716.2,2716.1,0.73633]
[1740374911254,1.1254,2716.3,2716.2,0.7363]
[1740374911451,1.45044887,2725.5,2716.2,0.7363]
[1740374911452,0.5567,2716.9,2716.8,0.73614]
[1740374911644,0.5568,2717.1,2716.7,2.622]
[1740374911845,0.5568,2717.1,2716.9,0.7361]
[1740374912040,0.5385,2717.0,2716.9,0.7361]
[1740374913352,0.5385,2717.0,2716.6,0.56012568]
[1740374913353,0.5385,2717.0,2716.6,0.00552568]
[1740374913555,0.5783,2716.9,2716.6,0.00552568]
[1740374913956,3.2078,2716.7,2716.2,5.8298]
[1740374914142,0.5783,2716.9,2716.2,6.56609]
[1740374914658,0.5783,2716.9,2716.2,5.8298]
[1740374915047,0.5783,2716.9,2716.3,0.74179568]
[1740374915242,0.5783,2716.9,2716.3,0.00552568]
[1740374915447,0.5783,2716.9,2716.8,0.73614]
[1740374915645,0.54402568,2717.0,2716.9,0.73611]
[1740374919151,0.54402568,2717.0,2716.8,3.2078]
[1740374919152,0.5678,2717.9,2716.8,3.2078]
[1740374919356,0.5678,2717.9,2717.6,0.73591]
[1740374919558,0.5678,2717.9,2717.4,2.621]
[1740374919751,0.5678,2717.9,2717.5,40.8]
[1740374920056,0.5678,2717.9,2717.8,0.73587]
[1740374920257,0.571,2718.0,2717.9,0.73584]
[1740374920556,0.571,2718.0,2717.9,1.27784941]
[1740374920750,3.2078,2719.0,2717.9,0.54200941]
[1740374920946,3.2078,2719.0,2718.1,3.2078]
[1740374920947,0.5472,2718.8,2718.1,3.2078]
[1740374921150,0.5472,2718.8,2718.2,3.16300941]
[1740374921349,0.5472,2718.8,2718.7,0.73563]
[1740374921546,0.5472,2718.8,2718.7,0.54200941]
[1740374922248,3.2078,2719.4,2718.7,0.54200941]
[1740374922450,3.2078,2719.4,2718.6,2.621]
[1740374922451,0.5272,2719.3,2718.8,0.54200941]
[1740374922652,0.5272,2719.3,2719.0,0.73554]
[1740374922850,0.5272,2719.3,2719.0,3.35554]
[1740374923257,0.5272,2719.3,2719.0,3.35553]
[1740374923452,0.5272,2719.3,2719.0,0.73552]
[1740374923757,3.735,2719.3,2718.8,3.36109542]
[1740374923946,3.735,2719.3,2718.9,0.53956494]
[1740374924151,3.735,2719.3,2718.8,2.62551542]
[1740374924459,3.735,2719.3,2718.8,3.36109542]
[1740374924659,3.735,2719.3,2718.8,2.62551542]
[1740374924958,3.735,2719.3,2718.8,3.36109542]
[1740374925848,3.735,2719.3,2718.8,2.62551542]
[1740374926153,3.735,2719.3,2718.8,3.36111542]
[1740374926554,3.735,2719.3,2718.8,3.36110542]
[1740374927058,3.735,2719.3,2719.0,0.73554]
[1740374928259,0.5272,2719.3,2719.2,0.73549]
[1740374928460,0.5272,2719.3,2719.2,3.35449]
[1740374928658,0.5272,2719.3,2719.2,2.619]
[1740374929461,0.5272,2719.3,2719.2,3.35449]
[1740374931757,0.5272,2719.3,2719.2,2.619]
[1740374932466,3.735,2719.3,2718.8,0.00551542]
[1740374933269,3.735,2719.3,2718.8,0.74111542]
[1740374935168,3.735,2719.3,2718.8,0.00551542]
[1740374935567,3.2078,2719.0,2718.8,0.00551542]
[1740374935766,1.104,2718.9,2718.2,23.029]
[1740374936075,3.2078,2718.7,2718.2,23.029]
[1740374936270,3.2078,2718.7,2718.2,2.617]
[1740374936475,3.2078,2718.7,2718.0,3.2078]
[1740374937067,3.2078,2718.7,2718.1,0.00551542]
[1740374937274,2.617,2718.6,2718.1,0.00551542]
[1740374937672,2.617,2718.6,2718.1,0.74129542]
[1740374937979,2.617,2718.6,2718.1,0.00551542]
[1740374938275,3.2078,2718.3,2718.1,0.00551542]
[1740374938571,1.1053,2718.2,2718.1,0.00551542]
[1740374938976,1.6404,2718.2,2718.1,0.00551542]
[1740374939774,1.6404,2718.2,2717.5,41.53594]
[1740374939975,3.2078,2718.0,2717.6,0.53917328]
[1740374940172,3.2078,2718.0,2717.5,41.53594]
[1740374940378,3.2078,2718.0,2717.6,0.53943218]
[1740374940577,3.2078,2718.0,2717.7,0.53943218]
[1740374940776,3.2078,2718.0,2717.5,41.53594]
[1740374940981,3.2078,2718.0,2717.6,1.28087386]
[1740374941183,3.2078,2718.0,2717.6,0.00551542]
[1740374941377,3.2078,2718.0,2717.7,0.53978088]
[1740374941572,3.2078,2718.0,2717.6,0.00551542]
[1740374941775,3.2078,2718.0,2717.7,0.53979723]
[1740374941975,3.2078,2718.0,2717.6,0.00551542]
[1740374942182,1.6404,2718.2,2717.7,0.53979826]
[1740374942377,4.2574,2718.2,2717.6,0.00551542]
[1740374942577,3.2078,2718.1,2717.7,0.53991015]
[1740374942777,3.2078,2718.1,2717.6,0.00551542]
[1740374942977,3.2078,2718.1,2717.7,0.53993526]
[1740374943175,3.2078,2718.1,2717.6,0.00551542]
[1740374943378,3.2078,2718.1,2717.7,0.54004499]
[1740374943684,3.2078,2718.1,2717.6,0.00551542]
[1740374943982,3.2078,2718.1,2717.7,0.54009362]
[1740374944185,3.2078,2718.1,2717.8,0.54041013]
[1740374944385,3.2078,2718.1,2717.6,0.00551542]
[1740374944584,3.2078,2718.1,2717.7,0.54044956]
[1740374944781,3.2078,2718.1,2717.6,0.00551542]
[1740374944981,3.2078,2718.1,2717.7,0.54045428]
[1740374945284,3.2078,2718.1,2717.8,0.54087281]
[1740374945487,3.2078,2718.1,2717.6,0.00551542]
[1740374945689,3.2078,2718.1,2717.7,0.54090461]
[1740374945882,3.2078,2718.1,2717.8,0.54090461]
[1740374946084,3.2078,2718.1,2717.6,0.00551542]
[1740374946379,3.2078,2718.1,2717.7,0.54090624]
[1740374946680,3.2078,2718.1,2717.8,0.54090624]
[1740374946886,3.2078,2718.1,2717.6,0.00551542]
[1740374947286,3.2078,2718.1,2717.7,0.54111584]
[1740374947487,3.2078,2718.1,2717.8,0.54111584]
[1740374947689,2.617,2718.0,2717.6,0.00551542]
[1740374947982,3.2078,2717.7,2716.5,0.5465]
[1740374948183,3.2078,2717.0,2716.6,0.54178592]
[1740374948488,3.7289,2716.9,2716.1,3.2078]
[1740374948686,3.2078,2716.4,2716.2,0.541693]
[1740374948884,3.2078,2716.4,2716.3,0.541693]
[1740374949086,3.2078,2716.4,2716.2,0.00551542]
[1740374949878,3.2078,2716.4,2715.4,0.73651]
[1740374950184,3.2078,2716.1,2715.5,0.54135038]
[1740374950494,3.2078,2716.1,2715.5,0.73647]
[1740374950687,2.617,2716.0,2715.2,1.30426]
[1740374950988,0.5809,2715.9,2715.3,0.54610783]
[1740374951183,1.1219,2715.9,2715.3,0.00551542]
[1740374951385,3.2078,2715.8,2715.3,0.00551542]
[1740374954890,6.1948,2715.8,2715.3,0.00551542]
[1740374956286,6.1948,2715.8,2715.3,0.74206542]
[1740374956583,2.987,2715.8,2715.3,0.00551542]
[1740374956787,3.2078,2716.3,2715.4,3.2078]
[1740374956990,3.2078,2716.3,2715.8,0.73639]
[1740374957194,3.2078,2716.3,2715.9,40.8]
[1740374957888,3.2078,2716.0,2715.9,40.8]
[1740374958086,3.2078,2716.0,2715.5,2.617]
[1740374958388,4.2758,2716.6,2715.4,3.2078]
[1740374958389,3.2078,2716.4,2715.4,3.2078]
[1740374958587,3.2078,2716.1,2715.3,0.00551542]
[1740374958785,0.562,2716.0,2715.3,0.00551542]
[1740374958980,0.562,2716.0,2715.6,0.73646]
[1740374959178,0.562,2716.0,2715.7,0.73643]
[1740374959783,0.562,2716.0,2715.7,0.73642]
[1740374960189,0.562,2716.0,2715.3,0.00551542]
[1740374960390,0.562,2716.0,2715.4,3.2078]
[1740374960589,0.562,2716.0,2715.6,0.73645]
[1740374960783,0.562,2716.0,2715.4,3.2078]
[1740374960990,0.562,2716.0,2715.5,0.73648]
[1740374961184,0.562,2716.0,2715.3,3.21331542]
[1740374961386,0.562,2716.0,2715.6,0.73645]
[1740374961886,0.562,2716.0,2715.7,0.73644]
[1740374962591,1.0968,2716.6,2715.8,1.84103]
[1740374962783,1.0968,2716.6,2716.1,0.73632]
[1740374962984,3.7445,2716.7,2716.0,3.2078]
[1740374963290,3.1537,2716.7,2716.6,0.73619]
[1740374963483,0.00551542,2716.8,2716.7,0.73617]
[1740374963888,3.21331542,2716.8,2716.2,3.2078]
[1740374964379,3.21331542,2716.8,2716.3,0.73625]
[1740374964380,0.5367,2716.7,2716.3,0.73625]
[1740374964584,0.5367,2716.7,2716.2,3.2078]
[1740374964793,0.5367,2716.7,2716.2,3.94408]
[1740374964994,0.5367,2716.7,2716.3,0.73627]
[1740374965192,0.5367,2716.7,2716.2,3.2078]
[1740374965794,0.5367,2716.7,2716.3,0.73626]
[1740374965989,0.5367,2716.7,2716.2,3.2078]
[1740374966197,0.5367,2716.7,2716.2,3.94409]
[1740374966803,0.5367,2716.7,2716.2,3.2078]
[1740374967000,0.5367,2716.7,2716.3,0.73626]
[1740374967891,0.5367,2716.7,2716.2,3.2078]
[1740374968096,0.5367,2716.7,2716.2,3.9441]
[1740374968492,0.5367,2716.7,2716.2,3.2078]
[1740374968998,1.1293,2716.6,2716.2,3.2078]
[1740374969199,2.617,2716.5,2716.2,3.2078]
[1740374969395,2.617,2716.5,2715.7,0.73643]
[1740374969396,3.2078,2716.3,2715.7,0.73643]
[1740374969595,3.2078,2716.3,2715.8,0.54199671]
[1740374969791,3.2078,2716.3,2715.9,0.54196697]
[1740374970098,3.2078,2716.3,2715.6,0.5555]
[1740374970293,3.2078,2716.3,2715.7,0.54196404]
[1740374970497,3.2078,2716.3,2715.8,1.27835404]
[1740374970696,3.2078,2716.3,2715.9,1.27834404]
[1740374970891,3.2078,2716.3,2716.0,0.73635]
[1740374971498,3.2078,2716.3,2715.9,0.73636]
[1740374972204,3.2078,2716.3,2716.0,1.27871077]
[1740374972399,3.2078,2716.3,2715.6,0.5555]
[1740374972605,3.2078,2716.3,2715.9,0.73637]
[1740374972807,3.2078,2716.3,2716.0,0.54244014]
[1740374973101,3.2078,2716.3,2715.6,0.5555]
[1740374973301,3.2078,2716.3,2715.7,0.54246625]
[1740374973606,3.2078,2716.3,2715.8,0.54248633]
[1740374973807,3.2078,2716.3,2716.0,0.73634]
[1740374974298,2.617,2716.5,2716.0,0.73635]
[1740374974503,3.2078,2716.3,2716.1,0.54323689]
[1740374974703,3.2078,2716.3,2716.0,0.73635]
[1740374974904,3.2078,2716.3,2716.1,0.54322357]
[1740374975103,3.2078,2716.3,2716.0,0.73635]
[1740374975305,3.2078,2716.3,2716.1,0.54307244]
[1740374975502,3.2078,2716.3,2715.9,0.73637]
[1740374975703,3.2078,2716.3,2716.0,0.54356549]
[1740374975903,3.2078,2716.3,2716.1,0.54356549]
[1740374976099,3.2078,2716.3,2716.2,0.54356549]